Workbook

Sheet Lists
A1: List of Areas | B1: Actual | C1: Months | D1: Menu
A2: Group | B2: Budget | C2: Jan | D2: IT
A3: England | B3: Forecast 1 | C3: Feb | D3: Finance
A4: Scotland | B4: Forecast 2 | C4: Mar | D4: HR
A5: Wales | B5: Forecast 3 | C5: Apr | D5: Strategy
A6: Northern Ireland | C6: May
C7: Jun
C8: Jul
C9: Aug
C10: Sep
C11: Oct
C12: Nov
C13: Dec

Sheet HR
A1: Region | B1: City | C1: FTEs | D1: Overtime Hrs | E1: Avg Svs Length | F1: Avg Salary | G1: Avg Bonus | H1: Avg Overtime | I1: AvgLeave Balance | J1: Spend Per Hire | K1: Survey Q1 | L1: Survey Q2 | M1: Survey Q3 | N1: Survey Q4 | O1: Train Q1 | P1: Train Q2 | Q1: Train Q3 | R1: Train Q4 | S1: Gender FM % Q1 | T1: Gender FM % Q2 | U1: Gender FM % Q3 | V1: Gender FM % Q4 | W1: Rating Q1 | X1: Rating Q2 | Y1: Rating Q3 | Z1: Rating Q4 | AA1: FTE/Contractor Q1 | AB1: FTE/Contractor Q2 | AC1: FTE/Contractor Q3 | AD1: FTE/Contractor Q4 | AE1: Overtime Hrs Q1 | AF1: Overtime Hrs Q2 | AG1: Overtime Hrs Q3 | AH1: Overtime Hrs Q4 | AI1: FTE Q1 | AJ1: FTE Q2 | AK1: FTE Q3 | AL1: FTE Q4 | AM1: Open Positions | AN1: Avg Perf Score | AO1: 19-25 | AP1: 26-35 | AQ1: 36-45 | AR1: 46-55 | AS1: 55+
A2: England | B2: IT | C2: 108 | D2: 976 | E2: 3.5 | F2: 65455 | G2: =F2*10.5% -> 6872.775 | H2: 3272.75 | I2: 22 | J2: 8692.44 | K2: 25 | L2: 45 | M2: 55 | N2: 76 | O2: 40 | P2: =ROUNDUP(L2*1.1,0) -> 50 | Q2: =ROUNDUP(M2*1.1,0) -> 61 | R2: 84 | S2: 10 | T2: 15 | U2: 20 | V2: 18 | W2: 3.3 | X2: 3.5 | Y2: 3.5 | Z2: 3.7 | AA2: 40 | AB2: 30 | AC2: 24 | AD2: 27 | AE2: 976 | AF2: 642.2222222 | AG2: 625.4545455 | AH2: 552.6315789 | AI2: 108 | AJ2: 144 | AK2: 150 | AL2: 156 | AM2: 17 | AN2: 4.5 | AO2: 21.6 | AP2: 32.4 | AQ2: 32.4 | AR2: 10.8 | AS2: 10.8
A3: England | B3: Finance | C3: 55 | D3: 433 | E3: 2.4 | F3: 48978 | G3: =F3*10.5% -> 5142.69 | H3: 979.56 | I3: 32 | J3: 3144.85 | K3: 27 | L3: 39 | M3: 55 | N3: 78 | O3: 44 | P3: 47 | Q3: =ROUNDUP(M3*1.1,0) -> 61 | R3: =ROUNDUP(N3*1.1,0) -> 86 | S3: 50 | T3: 50 | U3: 42 | V3: 45 | W3: 4 | X3: 4 | Y3: 4.1 | Z3: 4.2 | AA3: 53 | AB3: 56 | AC3: 67 | AD3: 63 | AE3: 433 | AF3: 399.7692308 | AG3: 383.4727273 | AH3: 370.3974359 | AI3: 55 | AJ3: 53 | AK3: 45 | AL3: 48 | AM3: 12 | AN3: 4.3 | AO3: 13.75 | AP3: 6.6 | AQ3: 11 | AR3: 12.1 | AS3: 11.55
A4: England | B4: HR | C4: 33 | D4: 200 | E4: 4.8 | F4: 46550 | G4: 4887.75 | H4: 931 | I4: 15 | J4: 6547.41 | K4: 35 | L4: =K4+10 -> 45 | M4: =L4+10 -> 55 | N4: =M4+10 -> 65 | O4: =ROUNDUP(K4*1.1,0) -> 39 | P4: =ROUNDUP(L4*1.1,0) -> 50 | Q4: 61 | R4: 72 | S4: 80 | T4: 72 | U4: 77 | V4: 70 | W4: 4.2 | X4: 4 | Y4: 3.8 | Z4: 3.7 | AA4: 91 | AB4: 92 | AC4: 95 | AD4: 99 | AE4: 200 | AF4: 255.5555556 | AG4: 309.0909091 | AH4: 361.5384615 | AI4: 33 | AJ4: 30 | AK4: 32 | AL4: 31 | AM4: 7 | AN4: 4.2 | AO4: 2.64 | AP4: 6.6 | AQ4: 6.27 | AR4: 4.62 | AS4: 12.87
A5: England | B5: Strategy | C5: 43 | D5: 187 | E5: 5.3 | F5: 49864 | G5: 5235.72 | H5: 2493.2 | I5: 6 | J5: 5604.52 | K5: 18 | L5: =K5+10 -> 28 | M5: 38 | N5: 48 | O5: 20 | P5: 31 | Q5: 42 | R5: 53 | S5: 55 | T5: 60 | U5: 65 | V5: 60 | W5: 4.8 | X5: 4.5 | Y5: 4.3 | Z5: 4.5 | AA5: 80 | AB5: 77 | AC5: 72 | AD5: 78 | AE5: 187 | AF5: 220.2142857 | AG5: 262.2631579 | AH5: 307.625 | AI5: 43 | AJ5: 45 | AK5: 45 | AL5: 42 | AM5: 4 | AN5: 4.1 | AO5: 14.19 | AP5: 12.47 | AQ5: 3.01 | AR5: 3.87 | AS5: 9.46
A6: Scotland | B6: IT | C6: 33 | D6: 198 | E6: 6.8 | F6: 41234 | G6: 4329.57 | H6: 2886.38 | I6: 17 | J6: 7680 | K6: 30 | L6: =K6+10 -> 40 | M6: 50 | N6: 60 | O6: 33 | P6: 44 | Q6: 55 | R6: 66 | S6: 20 | T6: 25 | U6: 28 | V6: 30 | W6: 4.2 | X6: 4 | Y6: 4.1 | Z6: 4.4 | AA6: 35 | AB6: 31 | AC6: 28 | AD6: 27 | AE6: 198 | AF6: 248.5 | AG6: 298.8 | AH6: 349 | AI6: 33 | AJ6: 38 | AK6: 35 | AL6: 30 | AM6: 6 | AN6: 4 | AO6: 8.91 | AP6: 3.3 | AQ6: 4.95 | AR6: 2.64 | AS6: 13.2
A7: Scotland | B7: Finance | C7: 23 | D7: 133 | E7: 5.9 | F7: 37886 | G7: 3978.03 | H7: 5682.9 | I7: 28 | J7: 4678 | K7: 45 | L7: =K7+10 -> 55 | M7: 65 | N7: 75 | O7: 50 | P7: 61 | Q7: 72 | R7: 83 | S7: 45 | T7: 30 | U7: 35 | V7: 30 | W7: 3.7 | X7: 3.6 | Y7: 3.4 | Z7: 3.2 | AA7: 45 | AB7: 71 | AC7: 62 | AD7: 72 | AE7: 133 | AF7: 208.8181818 | AG7: 276.6923077 | AH7: 339.8 | AI7: 23 | AJ7: 15 | AK7: 18 | AL7: 16 | AM7: 5 | AN7: 3.4 | AO7: 4.14 | AP7: 2.99 | AQ7: 5.52 | AR7: 7.59 | AS7: 2.76
A8: Scotland | B8: HR | C8: 13 | D8: 87 | E8: 3.8 | F8: 35985 | G8: 3778.425 | H8: 719.7 | I8: 15 | J8: 3790 | K8: 70 | L8: 77 | M8: 88 | N8: =M8+10 -> 98 | O8: 77 | P8: 85 | Q8: 97 | R8: 108 | S8: 67 | T8: 67 | U8: 70 | V8: 72 | W8: 4.3 | X8: 4 | Y8: 4.2 | Z8: 4.1 | AA8: 85 | AB8: 88 | AC8: 85 | AD8: 83 | AE8: 87 | AF8: 179.0909091 | AG8: 256.7045455 | AH8: 330.5102041 | AI8: 13 | AJ8: 13 | AK8: 14 | AL8: 13 | AM8: 4 | AN8: 3.8 | AO8: 2.47 | AP8: 2.21 | AQ8: 1.43 | AR8: 1.3 | AS8: 5.59
A9: Scotland | B9: Strategy | C9: 12 | D9: 90 | E9: 2.9 | F9: 33459 | G9: 3513.195 | H9: 1672.95 | I9: 28 | J9: 5789 | K9: 33 | L9: =K9+10 -> 43 | M9: 77 | N9: 86 | O9: 37 | P9: 48 | Q9: 85 | R9: 95 | S9: 54 | T9: 54 | U9: 57 | V9: 59 | W9: 4 | X9: 3.8 | Y9: 4 | Z9: 4.2 | AA9: 80 | AB9: 83 | AC9: 79 | AD9: 77 | AE9: 90 | AF9: 169.0697674 | AG9: 194.4155844 | AH9: 274.0697674 | AI9: 12 | AJ9: 12 | AK9: 13 | AL9: 13 | AM9: 3 | AN9: 3.6 | AO9: 0.96 | AP9: 2.52 | AQ9: 3.6 | AR9: 3.6 | AS9: 1.32
A10: Wales | B10: IT | C10: 58 | D10: 236 | E10: 1.8 | F10: 28567 | G10: 2999.535 | H10: 285.67 | I10: 21 | J10: 6787 | K10: 35 | L10: =K10+10 -> 45 | M10: 60 | N10: =M10+10 -> 70 | O10: 39 | P10: 50 | Q10: 66 | R10: 77 | S10: 42 | T10: 42 | U10: 40 | V10: 40 | W10: 2.8 | X10: 3 | Y10: 3.5 | Z10: 3.3 | AA10: 43 | AB10: 46 | AC10: 49 | AD10: 49 | AE10: 236 | AF10: 283.5555556 | AG10: 312.6666667 | AH10: 368 | AI10: 58 | AJ10: 55 | AK10: 52 | AL10: 52 | AM10: 6 | AN10: 3.9 | AO10: 17.4 | AP10: 4.64 | AQ10: 6.38 | AR10: 6.38 | AS10: 23.2
A11: Wales | B11: Finance | C11: 35 | D11: 177 | E11: 4.9 | F11: 29889 | G11: 3138.345 | H11: 2092.23 | I11: 12 | J11: 4567 | K11: 25 | L11: =K11+10 -> 35 | M11: 66 | N11: 70 | O11: 28 | P11: 39 | Q11: 73 | R11: 77 | S11: 45 | T11: 45 | U11: 50 | V11: 53 | W11: 3.7 | X11: 3.9 | Y11: 3.4 | Z11: 3.2 | AA11: 53 | AB11: 56 | AC11: 51 | AD11: 49 | AE11: 177 | AF11: 226.4285714 | AG11: 220.0757576 | AH11: 307.5 | AI11: 35 | AJ11: 34 | AK11: 28 | AL11: 29 | AM11: 5 | AN11: 4.3 | AO11: 10.85 | AP11: 9.1 | AQ11: 4.2 | AR11: 7.7 | AS11: 3.15
A12: Wales | B12: HR | C12: 16 | D12: 88 | E12: 3 | F12: 31009 | G12: 3255.945 | H12: 2170.63 | I12: 18 | J12: 3896 | K12: 25 | L12: 50 | M12: 73 | N12: =M12+10 -> 83 | O12: 28 | P12: 55 | Q12: 81 | R12: 92 | S12: 21 | T12: 21 | U12: 25 | V12: 29 | W12: 4 | X12: 3 | Y12: 3.5 | Z12: 3.9 | AA12: 93 | AB12: 96 | AC12: 82 | AD12: 72 | AE12: 88 | AF12: 144 | AG12: 198.630137 | AH12: 274.6987952 | AI12: 16 | AJ12: 16 | AK12: 18 | AL12: 21 | AM12: 3 | AN12: 3.7 | AO12: 4.8 | AP12: 1.76 | AQ12: 4.48 | AR12: 2.88 | AS12: 2.08
A13: Wales | B13: Strategy | C13: 9 | D13: 34 | E13: 2 | F13: 27056 | G13: 2840.88 | H13: 270.56 | I13: 23 | J13: 2978 | K13: 25 | L13: 60 | M13: =L13+10 -> 70 | N13: 88 | O13: 28 | P13: 66 | Q13: 77 | R13: 97 | S13: 59 | T13: 61 | U13: 63 | V13: 60 | W13: 4.2 | X13: 4.8 | Y13: 4.1 | Z13: 4.4 | AA13: 88 | AB13: 89 | AC13: 87 | AD13: 92 | AE13: 34 | AF13: 114.1666667 | AG13: 197.8571429 | AH13: 257.3863636 | AI13: 9 | AJ13: 8 | AK13: 9 | AL13: 7 | AM13: 2 | AN13: 4.5 | AO13: 1.53 | AP13: 2.34 | AQ13: 1.89 | AR13: 1.98 | AS13: 1.26
A14: Northern Ireland | B14: IT | C14: 44 | D14: 184 | E14: 3.9 | F14: 36789 | G14: 3862.845 | H14: 1839.45 | I14: 19 | J14: 3890 | K14: 18 | L14: 40 | M14: 50 | N14: 80 | O14: =ROUNDUP(K14*1.3,0) -> 24 | P14: =ROUNDUP(L14*1.3,0) -> 52 | Q14: =ROUNDUP(M14*1.3,0) -> 65 | R14: 88 | S14: 8 | T14: 12 | U14: 15 | V14: 18 | W14: 3 | X14: 3.5 | Y14: 3.6 | Z14: 3.4 | AA14: 50 | AB14: 37 | AC14: 31 | AD14: 27 | AE14: 184 | AF14: 182.8 | AG14: 246.24 | AH14: 253.9 | AI14: 44 | AJ14: 45 | AK14: 44 | AL14: 40 | AM14: 4 | AN14: 4 | AO14: 8 | AP14: 15 | AQ14: 14 | AR14: 6 | AS14: 1.2
A15: Northern Ireland | B15: Finance | C15: 21 | D15: 104 | E15: 6.7 | F15: 29889 | G15: 3138.345 | H15: 2690.01 | I15: 9 | J15: 4671 | K15: 50 | L15: 70 | M15: 80 | N15: 99 | O15: 65 | P15: 91 | Q15: 94 | R15: 98 | S15: 45 | T15: 45 | U15: 50 | V15: 45 | W15: 3.7 | X15: 3.5 | Y15: 3.9 | Z15: 3.7 | AA15: 60 | AB15: 63 | AC15: 57 | AD15: 63 | AE15: 104 | AF15: 174.2857143 | AG15: 252.5 | AH15: 304.040404 | AI15: 21 | AJ15: 20 | AK15: 23 | AL15: 21 | AM15: 1 | AN15: 3.1 | AO15: 5.88 | AP15: 1.89 | AQ15: 2.31 | AR15: 4.83 | AS15: 6.09
A16: Northern Ireland | B16: HR | C16: 8 | D16: 65 | E16: 4.6 | F16: 32029 | G16: 3363.045 | H16: 4804.35 | I16: 12 | J16: 5467 | K16: 25 | L16: 50 | M16: 66 | N16: =M16+10 -> 76 | O16: 33 | P16: 65 | Q16: 86 | R16: =ROUNDUP(N16*1.3,0) -> 99 | S16: 67 | T16: 70 | U16: 65 | V16: 63 | W16: 3.8 | X16: 4 | Y16: 4 | Z16: 4.1 | AA16: 100 | AB16: 99 | AC16: 100 | AD16: 100 | AE16: 65 | AF16: 132.5 | AG16: 200.3787879 | AH16: 274.0131579 | AI16: 8 | AJ16: 9 | AK16: 9 | AL16: 9 | AM16: 1 | AN16: 3 | AO16: 2 | AP16: 2 | AQ16: 3 | AR16: 1 | AS16: 0
A17: Northern Ireland | B17: Strategy | C17: 7 | D17: 54 | E17: 5 | F17: 27998 | G17: 2939.79 | H17: 1959.86 | I17: 15 | J17: 4925 | K17: 10 | L17: =K17+10 -> 20 | M17: 30 | N17: 60 | O17: =ROUNDUP(K17*1.3,0) -> 13 | P17: =ROUNDUP(L17*1.3,0) -> 26 | Q17: 39 | R17: 78 | S17: 59 | T17: 59 | U17: 67 | V17: 67 | W17: 3 | X17: 3.2 | Y17: 3.4 | Z17: 3.6 | AA17: 95 | AB17: 98 | AC17: 87 | AD17: 87 | AE17: 54 | AF17: 127 | AG17: 184.6666667 | AH17: 192.3333333 | AI17: 7 | AJ17: 7 | AK17: 8 | AL17: 8 | AM17: 2 | AN17: 3.1 | AO17: 0.84 | AP17: 1.96 | AQ17: 1.26 | AR17: 2.45 | AS17: 0.49

Sheet Staff
A1: Region | B1: Month | C1: Consultants | D1: Open Positions | E1: Casual Staff | F1: Termination | G1: New Hires
A2: England | B2: 2012-01-01 | C2: 87 | D2: 33 | E2: 27 | F2: -3 | G2: 2
A3: England | B3: 2012-02-01 | C3: 93 | D3: 34 | E3: 28 | F3: -4 | G3: 1
A4: England | B4: 2012-03-01 | C4: 80 | D4: 34 | E4: 24 | F4: -2 | G4: 4
A5: England | B5: 2012-04-01 | C5: 74 | D5: 31 | E5: 23 | F5: -1 | G5: 2
A6: England | B6: 2012-05-01 | C6: 70 | D6: 27 | E6: 21 | F6: -3 | G6: 2
A7: England | B7: 2012-06-01 | C7: 100 | D7: 42 | E7: 30 | F7: -2 | G7: 4
A8: England | B8: 2012-07-01 | C8: 79 | D8: 32 | E8: 24 | F8: -1 | G8: 2
A9: England | B9: 2012-08-01 | C9: 98 | D9: 40 | E9: 30 | F9: -4 | G9: 8
A10: England | B10: 2012-09-01 | C10: 98 | D10: 36 | E10: 30 | F10: -6 | G10: 4
A11: England | B11: 2012-10-01 | C11: 64 | D11: 26 | E11: 20 | F11: -5 | G11: 10
A12: England | B12: 2012-11-01 | C12: 82 | D12: 28 | E12: 25 | F12: 0 | G12: 0
A13: England | B13: 2012-12-01 | C13: 97 | D13: 38 | E13: 30 | F13: 0 | G13: 1
A14: England | B14: 2013-01-01 | C14: 58 | D14: 21 | E14: 18 | F14: -2 | G14: 7
A15: England | B15: 2013-02-01 | C15: 80 | D15: 31 | E15: 24 | F15: -3 | G15: 4
A16: England | B16: 2013-03-01 | C16: 74 | D16: 31 | E16: 23 | F16: 0 | G16: 2
A17: England | B17: 2013-04-01 | C17: 70 | D17: 27 | E17: 21 | F17: -3 | G17: 3
A18: England | B18: 2013-05-01 | C18: 87 | D18: 33 | E18: 27 | F18: -3 | G18: 3
A19: England | B19: 2013-06-01 | C19: 93 | D19: 34 | E19: 28 | F19: -3 | G19: 2
A20: England | B20: 2013-07-01 | C20: 100 | D20: 42 | E20: 30 | F20: -3 | G20: 2
A21: England | B21: 2013-08-01 | C21: 58 | D21: 21 | E21: 18 | F21: -2 | G21: 4
A22: England | B22: 2013-09-01 | C22: 67 | D22: 26 | E22: 21 | F22: -3 | G22: 1
A23: England | B23: 2013-10-01 | C23: 84 | D23: 34 | E23: 26 | F23: -3 | G23: 4
A24: England | B24: 2013-11-01 | C24: 75 | D24: 29 | E24: 23 | F24: -3 | G24: 1
A25: England | B25: 2013-12-01 | C25: 87 | D25: 35 | E25: 27 | F25: -3 | G25: 2
A26: Scotland | B26: 2012-01-01 | C26: 44 | D26: 17 | E26: 14 | F26: -2 | G26: 4
A27: Scotland | B27: 2012-02-01 | C27: 47 | D27: 17 | E27: 15 | F27: -2 | G27: 1
A28: Scotland | B28: 2012-03-01 | C28: 40 | D28: 17 | E28: 12 | F28: -2 | G28: 4
A29: Scotland | B29: 2012-04-01 | C29: 37 | D29: 16 | E29: 12 | F29: -2 | G29: 4
A30: Scotland | B30: 2012-05-01 | C30: 27 | D30: 10 | E30: 9 | F30: -1 | G30: 2
A31: Scotland | B31: 2012-06-01 | C31: 25 | D31: 10 | E31: 8 | F31: -1 | G31: 2
A32: Scotland | B32: 2012-07-01 | C32: 21 | D32: 7 | E32: 7 | F32: -1 | G32: 2
A33: Scotland | B33: 2012-08-01 | C33: 13 | D33: 5 | E33: 4 | F33: -4 | G33: 8
A34: Scotland | B34: 2012-09-01 | C34: 41 | D34: 15 | E34: 13 | F34: -5 | G34: 7
A35: Scotland | B35: 2012-10-01 | C35: 47 | D35: 18 | E35: 15 | F35: -2 | G35: 4
A36: Scotland | B36: 2012-11-01 | C36: 59 | D36: 24 | E36: 18 | F36: -6 | G36: 9
A37: Scotland | B37: 2012-12-01 | C37: 53 | D37: 20 | E37: 16 | F37: -2 | G37: 4
A38: Scotland | B38: 2013-01-01 | C38: 61 | D38: 24 | E38: 19 | F38: -2 | G38: 4
A39: Scotland | B39: 2013-02-01 | C39: 69 | D39: 26 | E39: 21 | F39: -2 | G39: 4
A40: Scotland | B40: 2013-03-01 | C40: 45 | D40: 18 | E40: 14 | F40: -2 | G40: 4
A41: Scotland | B41: 2013-04-01 | C41: 57 | D41: 20 | E41: 18 | F41: -5 | G41: 8
A42: Scotland | B42: 2013-05-01 | C42: 68 | D42: 27 | E42: 21 | F42: -3 | G42: 2
A43: Scotland | B43: 2013-06-01 | C43: 41 | D43: 15 | E43: 13 | F43: -1 | G43: 2
A44: Scotland | B44: 2013-07-01 | C44: 56 | D44: 22 | E44: 17 | F44: -1 | G44: 1
A45: Scotland | B45: 2013-08-01 | C45: 44 | D45: 17 | E45: 14 | F45: -2 | G45: 4
A46: Scotland | B46: 2013-09-01 | C46: 47 | D46: 17 | E46: 15 | F46: -2 | G46: 4
A47: Scotland | B47: 2013-10-01 | C47: 40 | D47: 17 | E47: 12 | F47: -2 | G47: 4
A48: Scotland | B48: 2013-11-01 | C48: 37 | D48: 16 | E48: 12 | F48: -2 | G48: 4
A49: Scotland | B49: 2013-12-01 | C49: 27 | D49: 10 | E49: 9 | F49: -2 | G49: 4
A50: Wales | B50: 2012-01-01 | C50: 22 | D50: 9 | E50: 7 | F50: -1 | G50: 2
A51: Wales | B51: 2012-02-01 | C51: 24 | D51: 9 | E51: 8 | F51: -1 | G51: 2
A52: Wales | B52: 2012-03-01 | C52: 20 | D52: 9 | E52: 6 | F52: -2 | G52: 3
A53: Wales | B53: 2012-04-01 | C53: 19 | D53: 8 | E53: 6 | F53: -1 | G53: 2
A54: Wales | B54: 2012-05-01 | C54: 4 | D54: 3 | E54: 2 | F54: -1 | G54: 2
A55: Wales | B55: 2012-06-01 | C55: 3 | D55: 1 | E55: 1 | F55: -1 | G55: 2
A56: Wales | B56: 2012-07-01 | C56: 22 | D56: 10 | E56: 7 | F56: -1 | G56: 2
A57: Wales | B57: 2012-08-01 | C57: 18 | D57: 7 | E57: 6 | F57: -1 | G57: 2
A58: Wales | B58: 2012-09-01 | C58: 31 | D58: 12 | E58: 10 | F58: -1 | G58: 2
A59: Wales | B59: 2012-10-01 | C59: 33 | D59: 12 | E59: 10 | F59: -1 | G59: 2
A60: Wales | B60: 2012-11-01 | C60: 28 | D60: 12 | E60: 9 | F60: -1 | G60: 2
A61: Wales | B61: 2012-12-01 | C61: 26 | D61: 11 | E61: 8 | F61: -1 | G61: 2
A62: Wales | B62: 2013-01-01 | C62: 19 | D62: 7 | E62: 6 | F62: -1 | G62: 2
A63: Wales | B63: 2013-02-01 | C63: 29 | D63: 11 | E63: 9 | F63: -1 | G63: 2
A64: Wales | B64: 2013-03-01 | C64: 33 | D64: 13 | E64: 10 | F64: -1 | G64: 2
A65: Wales | B65: 2013-04-01 | C65: 42 | D65: 17 | E65: 13 | F65: -2 | G65: 4
A66: Wales | B66: 2013-05-01 | C66: 37 | D66: 14 | E66: 12 | F66: -2 | G66: 4
A67: Wales | B67: 2013-06-01 | C67: 43 | D67: 17 | E67: 13 | F67: -2 | G67: 4
A68: Wales | B68: 2013-07-01 | C68: 48 | D68: 18 | E68: 15 | F68: -2 | G68: 4
A69: Wales | B69: 2013-08-01 | C69: 22 | D69: 9 | E69: 7 | F69: -1 | G69: 2
A70: Wales | B70: 2013-09-01 | C70: 24 | D70: 9 | E70: 8 | F70: -1 | G70: 0
A71: Wales | B71: 2013-10-01 | C71: 20 | D71: 9 | E71: 6 | F71: -1 | G71: 2
A72: Wales | B72: 2013-11-01 | C72: 19 | D72: 8 | E72: 6 | F72: -1 | G72: 2
A73: Wales | B73: 2013-12-01 | C73: 4 | D73: 3 | E73: 2 | F73: -1 | G73: 0
A74: Northern Ireland | B74: 2012-01-01 | C74: 11 | D74: 5 | E74: 4 | F74: -1 | G74: 2
A75: Northern Ireland | B75: 2012-02-01 | C75: 12 | D75: 5 | E75: 4 | F75: -1 | G75: 2
A76: Northern Ireland | B76: 2012-03-01 | C76: 10 | D76: 5 | E76: 3 | F76: -1 | G76: 0
A77: Northern Ireland | B77: 2012-04-01 | C77: 10 | D77: 4 | E77: 3 | F77: -1 | G77: 3
A78: Northern Ireland | B78: 2012-05-01 | C78: 17 | D78: 9 | E78: 6 | F78: -1 | G78: 2
A79: Northern Ireland | B79: 2012-06-01 | C79: 9 | D79: 6 | E79: 3 | F79: -1 | G79: 2
A80: Northern Ireland | B80: 2012-07-01 | C80: 26 | D80: 11 | E80: 8 | F80: -1 | G80: 3
A81: Northern Ireland | B81: 2012-08-01 | C81: 23 | D81: 9 | E81: 7 | F81: -1 | G81: 2
A82: Northern Ireland | B82: 2012-09-01 | C82: 16 | D82: 6 | E82: 5 | F82: -1 | G82: 3
A83: Northern Ireland | B83: 2012-10-01 | C83: 17 | D83: 6 | E83: 6 | F83: -1 | G83: 2
A84: Northern Ireland | B84: 2012-11-01 | C84: 14 | D84: 6 | E84: 5 | F84: -1 | G84: 1
A85: Northern Ireland | B85: 2012-12-01 | C85: 13 | D85: 6 | E85: 4 | F85: -1 | G85: 1
A86: Northern Ireland | B86: 2013-01-01 | C86: 13 | D86: 7 | E86: 4 | F86: -1 | G86: 2
A87: Northern Ireland | B87: 2013-02-01 | C87: 8 | D87: 24 | E87: 3 | F87: -1 | G87: 2
A88: Northern Ireland | B88: 2013-03-01 | C88: 14 | D88: 9 | E88: 5 | F88: -1 | G88: 2
A89: Northern Ireland | B89: 2013-04-01 | C89: 14 | D89: 7 | E89: 5 | F89: -1 | G89: 2
A90: Northern Ireland | B90: 2013-05-01 | C90: 12 | D90: 7 | E90: 4 | F90: -1 | G90: 3
A91: Northern Ireland | B91: 2013-06-01 | C91: 14 | D91: 5 | E91: 5 | F91: -1 | G91: 2
A92: Northern Ireland | B92: 2013-07-01 | C92: 20 | D92: 8 | E92: 6 | F92: -1 | G92: 2
A93: Northern Ireland | B93: 2013-08-01 | C93: 11 | D93: 5 | E93: 4 | F93: -1 | G93: 2
A94: Northern Ireland | B94: 2013-09-01 | C94: 12 | D94: 5 | E94: 4 | F94: -1 | G94: 2
A95: Northern Ireland | B95: 2013-10-01 | C95: 10 | D95: 5 | E95: 3 | F95: -1 | G95: 1
A96: Northern Ireland | B96: 2013-11-01 | C96: 10 | D96: 4 | E96: 3 | F96: -1 | G96: 2
A97: Northern Ireland | B97: 2013-12-01 | C97: 17 | D97: 9 | E97: 6 | F97: -1 | G97: 2
A98: Group | B98: 2012-01-01 | D98: 62 | E98: 0 | F98: 0 | G98: 0
A99: Group | B99: 2012-02-01 | D99: 64 | E99: 0 | F99: 0 | G99: 0
A100: Group | B100: 2012-03-01 | D100: 63 | E100: 0 | F100: 0 | G100: 0
A101: Group | B101: 2012-04-01 | D101: 57 | E101: 0 | F101: 0 | G101: 0
A102: Group | B102: 2012-05-01 | D102: 46 | E102: 0 | F102: 0 | G102: 0
A103: Group | B103: 2012-06-01 | D103: 57 | E103: 0 | F103: 0 | G103: 0
A104: Group | B104: 2012-07-01 | D104: 59 | E104: 0 | F104: 0 | G104: 0
A105: Group | B105: 2012-08-01 | D105: 59 | E105: 0 | F105: 0 | G105: 0
A106: Group | B106: 2012-09-01 | D106: 68 | E106: 0 | F106: 0 | G106: 0
A107: Group | B107: 2012-10-01 | D107: 61 | E107: 0 | F107: 0 | G107: 0
A108: Group | B108: 2012-11-01 | D108: 69 | E108: 0 | F108: 0 | G108: 0
A109: Group | B109: 2012-12-01 | D109: 74 | E109: 0 | F109: 0 | G109: 0
A110: Group | B110: 2013-01-01 | D110: 58 | E110: 0 | F110: 0 | G110: 0
A111: Group | B111: 2013-02-01 | D111: 89 | E111: 0 | F111: 0 | G111: 0
A112: Group | B112: 2013-03-01 | D112: 69 | E112: 0 | F112: 0 | G112: 0
A113: Group | B113: 2013-04-01 | D113: 69 | E113: 0 | F113: 0 | G113: 0
A114: Group | B114: 2013-05-01 | D114: 80 | E114: 0 | F114: 0 | G114: 0
A115: Group | B115: 2013-06-01 | D115: 70 | E115: 0 | F115: 0 | G115: 0
A116: Group | B116: 2013-07-01 | D116: 88 | E116: 0 | F116: 0 | G116: 0
A117: Group | B117: 2013-08-01 | D117: 50 | E117: 0 | F117: 0 | G117: 0
A118: Group | B118: 2013-09-01 | D118: 55 | E118: 0 | F118: 0 | G118: 0
A119: Group | B119: 2013-10-01 | D119: 63 | E119: 0 | F119: 0 | G119: 0
A120: Group | B120: 2013-11-01 | D120: 55 | E120: 0 | F120: 0 | G120: 0
A121: Group | B121: 2013-12-01 | D121: 54 | E121: 0 | F121: 0 | G121: 0

Sheet Calcs
A1: Group | R1: 1 | S1: =INDEX(Lists!$A$3:$A$6,R1,1) -> England
A2: Region | B2: Dept | C2: Category | D2: Survey Q1 | E2: Survey Q2 | F2: Survey Q3 | G2: Survey Q4 | H2: Total
A3: =Summary!$B$7 -> England | B3: =Summary!$D$6 -> Strategy | C3: Satisfaction | D3: =SUMIFS(HR!K$2:K$17,HR!$A$2:$A$17,$A$3,HR!$B$2:$B$17,$B$3) -> 18 | E3: =SUMIFS(HR!L$2:L$17,HR!$A$2:$A$17,$A$3,HR!$B$2:$B$17,$B$3) -> 28 | F3: =SUMIFS(HR!M$2:M$17,HR!$A$2:$A$17,$A$3,HR!$B$2:$B$17,$B$3) -> 38 | G3: =SUMIFS(HR!N$2:N$17,HR!$A$2:$A$17,$A$3,HR!$B$2:$B$17,$B$3) -> 48 | H3: =SUM(D3:G3) -> 132
A4: =Summary!$B$7 -> England | B4: =Summary!$D$6 -> Strategy | C4: Training | D4: =SUMIFS(HR!O$2:O$17,HR!$A$2:$A$17,$A$3,HR!$B$2:$B$17,$B$3) -> 20 | E4: =SUMIFS(HR!P$2:P$17,HR!$A$2:$A$17,$A$3,HR!$B$2:$B$17,$B$3) -> 31 | F4: =SUMIFS(HR!Q$2:Q$17,HR!$A$2:$A$17,$A$3,HR!$B$2:$B$17,$B$3) -> 42 | G4: =SUMIFS(HR!R$2:R$17,HR!$A$2:$A$17,$A$3,HR!$B$2:$B$17,$B$3) -> 53 | H4: =SUM(D4:G4) -> 146
A5: =Summary!$B$7 -> England | B5: =Summary!$D$6 -> Strategy | C5: Gender | D5: =SUMIFS(HR!S$2:S$17,HR!$A$2:$A$17,$A$3,HR!$B$2:$B$17,$B$3) -> 55 | E5: =SUMIFS(HR!T$2:T$17,HR!$A$2:$A$17,$A$3,HR!$B$2:$B$17,$B$3) -> 60 | F5: =SUMIFS(HR!U$2:U$17,HR!$A$2:$A$17,$A$3,HR!$B$2:$B$17,$B$3) -> 65 | G5: =SUMIFS(HR!V$2:V$17,HR!$A$2:$A$17,$A$3,HR!$B$2:$B$17,$B$3) -> 60 | H5: 240
A6: =Summary!$B$7 -> England | B6: =Summary!$D$6 -> Strategy | C6: Rating | D6: =SUMIFS(HR!W$2:W$17,HR!$A$2:$A$17,$A$3,HR!$B$2:$B$17,$B$3) -> 4.8 | E6: =SUMIFS(HR!X$2:X$17,HR!$A$2:$A$17,$A$3,HR!$B$2:$B$17,$B$3) -> 4.5 | F6: =SUMIFS(HR!Y$2:Y$17,HR!$A$2:$A$17,$A$3,HR!$B$2:$B$17,$B$3) -> 4.3 | G6: =SUMIFS(HR!Z$2:Z$17,HR!$A$2:$A$17,$A$3,HR!$B$2:$B$17,$B$3) -> 4.5 | H6: 18.1
A7: =Summary!$B$7 -> England | B7: =Summary!$D$6 -> Strategy | C7: FTE/Contractor | D7: =SUMIFS(HR!AA$2:AA$17,HR!$A$2:$A$17,$A$3,HR!$B$2:$B$17,$B$3) -> 80 | E7: =SUMIFS(HR!AB$2:AB$17,HR!$A$2:$A$17,$A$3,HR!$B$2:$B$17,$B$3) -> 77 | F7: =SUMIFS(HR!AC$2:AC$17,HR!$A$2:$A$17,$A$3,HR!$B$2:$B$17,$B$3) -> 72 | G7: =SUMIFS(HR!AD$2:AD$17,HR!$A$2:$A$17,$A$3,HR!$B$2:$B$17,$B$3) -> 78 | H7: 307
A8: =Summary!$B$7 -> England | B8: =Summary!$D$6 -> Strategy | C8: Overtime | D8: =SUMIFS(HR!AE$2:AE$17,HR!$A$2:$A$17,$A$3,HR!$B$2:$B$17,$B$3) -> 187 | E8: =SUMIFS(HR!AF$2:AF$17,HR!$A$2:$A$17,$A$3,HR!$B$2:$B$17,$B$3) -> 220.2142857 | F8: =SUMIFS(HR!AG$2:AG$17,HR!$A$2:$A$17,$A$3,HR!$B$2:$B$17,$B$3) -> 262.2631579 | G8: =SUMIFS(HR!AH$2:AH$17,HR!$A$2:$A$17,$A$3,HR!$B$2:$B$17,$B$3) -> 307.625 | H8: 977.1024436
A9: =Summary!$B$7 -> England | B9: IT | C9: FTE | D9: =SUMIFS(HR!AI$2:AI$17,HR!$A$2:$A$17,$A9,HR!$B$2:$B$17,$B9) -> 108 | E9: =SUMIFS(HR!AJ$2:AJ$17,HR!$A$2:$A$17,$A9,HR!$B$2:$B$17,$B9) -> 144 | F9: =SUMIFS(HR!AK$2:AK$17,HR!$A$2:$A$17,$A9,HR!$B$2:$B$17,$B9) -> 150 | G9: =SUMIFS(HR!AL$2:AL$17,HR!$A$2:$A$17,$A9,HR!$B$2:$B$17,$B9) -> 156 | H9: 558
A10: =Summary!$B$7 -> England | B10: Finance | C10: FTE | D10: =SUMIFS(HR!AI$2:AI$17,HR!$A$2:$A$17,$A10,HR!$B$2:$B$17,$B10) -> 55 | E10: =SUMIFS(HR!AJ$2:AJ$17,HR!$A$2:$A$17,$A10,HR!$B$2:$B$17,$B10) -> 53 | F10: =SUMIFS(HR!AK$2:AK$17,HR!$A$2:$A$17,$A10,HR!$B$2:$B$17,$B10) -> 45 | G10: =SUMIFS(HR!AL$2:AL$17,HR!$A$2:$A$17,$A10,HR!$B$2:$B$17,$B10) -> 48 | H10: 201
A11: =Summary!$B$7 -> England | B11: HR | C11: FTE | D11: =SUMIFS(HR!AI$2:AI$17,HR!$A$2:$A$17,$A11,HR!$B$2:$B$17,$B11) -> 33 | E11: =SUMIFS(HR!AJ$2:AJ$17,HR!$A$2:$A$17,$A11,HR!$B$2:$B$17,$B11) -> 30 | F11: =SUMIFS(HR!AK$2:AK$17,HR!$A$2:$A$17,$A11,HR!$B$2:$B$17,$B11) -> 32 | G11: =SUMIFS(HR!AL$2:AL$17,HR!$A$2:$A$17,$A11,HR!$B$2:$B$17,$B11) -> 31 | H11: 126
A12: =Summary!$B$7 -> England | B12: Strategy | C12: FTE | D12: =SUMIFS(HR!AI$2:AI$17,HR!$A$2:$A$17,$A12,HR!$B$2:$B$17,$B12) -> 43 | E12: =SUMIFS(HR!AJ$2:AJ$17,HR!$A$2:$A$17,$A12,HR!$B$2:$B$17,$B12) -> 45 | F12: =SUMIFS(HR!AK$2:AK$17,HR!$A$2:$A$17,$A12,HR!$B$2:$B$17,$B12) -> 45 | G12: =SUMIFS(HR!AL$2:AL$17,HR!$A$2:$A$17,$A12,HR!$B$2:$B$17,$B12) -> 42 | H12: 175
A15: Region | B15: Dept | C15: Spend per Hire | D15: Open Positions
A16: =Summary!$B$7 -> England | B16: IT | C16: =SUMIFS(HR!$J$2:$J$17,HR!$A$2:$A$17,$A16,HR!$B$2:$B$17,$B16)/1000 -> 8.69244 | D16: =SUMIFS(HR!$AM$2:$AM$17,HR!$A$2:$A$17,$A16,HR!$B$2:$B$17,$B16) -> 17
A17: =Summary!$B$7 -> England | B17: Finance | C17: =SUMIFS(HR!$J$2:$J$17,HR!$A$2:$A$17,$A17,HR!$B$2:$B$17,$B17)/1000 -> 3.14485 | D17: =SUMIFS(HR!$AM$2:$AM$17,HR!$A$2:$A$17,$A17,HR!$B$2:$B$17,$B17) -> 12
A18: =Summary!$B$7 -> England | B18: HR | C18: =SUMIFS(HR!$J$2:$J$17,HR!$A$2:$A$17,$A18,HR!$B$2:$B$17,$B18)/1000 -> 6.54741 | D18: =SUMIFS(HR!$AM$2:$AM$17,HR!$A$2:$A$17,$A18,HR!$B$2:$B$17,$B18) -> 7
A19: =Summary!$B$7 -> England | B19: Strategy | C19: =SUMIFS(HR!$J$2:$J$17,HR!$A$2:$A$17,$A19,HR!$B$2:$B$17,$B19)/1000 -> 5.60452 | D19: =SUMIFS(HR!$AM$2:$AM$17,HR!$A$2:$A$17,$A19,HR!$B$2:$B$17,$B19) -> 4
B20: Total | C20: =AVERAGE(C16:C19) -> 5.997305 | D20: =SUM(D16:D19) -> 40
A23: Region | B23: Dept | C23: Consultants | D23: Open Positions | E23: Part Time
A24: =Summary!$B$7 -> England | B24: 2013-01-01 | C24: =IF(C$39,SUMIFS(Staff!C$2:C$121,Staff!$A$2:$A$121,$A24,Staff!$B$2:$B$121,$B24),NA()) -> 58 | D24: =IF(D$39,SUMIFS(Staff!D$2:D$121,Staff!$A$2:$A$121,$A24,Staff!$B$2:$B$121,$B24),NA()) -> 21 | E24: =IF(E$39,SUMIFS(Staff!E$2:E$121,Staff!$A$2:$A$121,$A24,Staff!$B$2:$B$121,$B24),NA()) -> 18
A25: =Summary!$B$7 -> England | B25: 2013-02-01 | C25: =IF(C$39,SUMIFS(Staff!C$2:C$121,Staff!$A$2:$A$121,$A25,Staff!$B$2:$B$121,$B25),NA()) -> 80 | D25: =IF(D$39,SUMIFS(Staff!D$2:D$121,Staff!$A$2:$A$121,$A25,Staff!$B$2:$B$121,$B25),NA()) -> 31 | E25: =IF(E$39,SUMIFS(Staff!E$2:E$121,Staff!$A$2:$A$121,$A25,Staff!$B$2:$B$121,$B25),NA()) -> 24
A26: =Summary!$B$7 -> England | B26: 2013-03-01 | C26: =IF(C$39,SUMIFS(Staff!C$2:C$121,Staff!$A$2:$A$121,$A26,Staff!$B$2:$B$121,$B26),NA()) -> 74 | D26: =IF(D$39,SUMIFS(Staff!D$2:D$121,Staff!$A$2:$A$121,$A26,Staff!$B$2:$B$121,$B26),NA()) -> 31 | E26: =IF(E$39,SUMIFS(Staff!E$2:E$121,Staff!$A$2:$A$121,$A26,Staff!$B$2:$B$121,$B26),NA()) -> 23
A27: =Summary!$B$7 -> England | B27: 2013-04-01 | C27: =IF(C$39,SUMIFS(Staff!C$2:C$121,Staff!$A$2:$A$121,$A27,Staff!$B$2:$B$121,$B27),NA()) -> 70 | D27: =IF(D$39,SUMIFS(Staff!D$2:D$121,Staff!$A$2:$A$121,$A27,Staff!$B$2:$B$121,$B27),NA()) -> 27 | E27: =IF(E$39,SUMIFS(Staff!E$2:E$121,Staff!$A$2:$A$121,$A27,Staff!$B$2:$B$121,$B27),NA()) -> 21
A28: =Summary!$B$7 -> England | B28: 2013-05-01 | C28: =IF(C$39,SUMIFS(Staff!C$2:C$121,Staff!$A$2:$A$121,$A28,Staff!$B$2:$B$121,$B28),NA()) -> 87 | D28: =IF(D$39,SUMIFS(Staff!D$2:D$121,Staff!$A$2:$A$121,$A28,Staff!$B$2:$B$121,$B28),NA()) -> 33 | E28: =IF(E$39,SUMIFS(Staff!E$2:E$121,Staff!$A$2:$A$121,$A28,Staff!$B$2:$B$121,$B28),NA()) -> 27
A29: =Summary!$B$7 -> England | B29: 2013-06-01 | C29: =IF(C$39,SUMIFS(Staff!C$2:C$121,Staff!$A$2:$A$121,$A29,Staff!$B$2:$B$121,$B29),NA()) -> 93 | D29: =IF(D$39,SUMIFS(Staff!D$2:D$121,Staff!$A$2:$A$121,$A29,Staff!$B$2:$B$121,$B29),NA()) -> 34 | E29: =IF(E$39,SUMIFS(Staff!E$2:E$121,Staff!$A$2:$A$121,$A29,Staff!$B$2:$B$121,$B29),NA()) -> 28
A30: =Summary!$B$7 -> England | B30: 2013-07-01 | C30: =IF(C$39,SUMIFS(Staff!C$2:C$121,Staff!$A$2:$A$121,$A30,Staff!$B$2:$B$121,$B30),NA()) -> 100 | D30: =IF(D$39,SUMIFS(Staff!D$2:D$121,Staff!$A$2:$A$121,$A30,Staff!$B$2:$B$121,$B30),NA()) -> 42 | E30: =IF(E$39,SUMIFS(Staff!E$2:E$121,Staff!$A$2:$A$121,$A30,Staff!$B$2:$B$121,$B30),NA()) -> 30
A31: =Summary!$B$7 -> England | B31: 2013-08-01 | C31: =IF(C$39,SUMIFS(Staff!C$2:C$121,Staff!$A$2:$A$121,$A31,Staff!$B$2:$B$121,$B31),NA()) -> 58 | D31: =IF(D$39,SUMIFS(Staff!D$2:D$121,Staff!$A$2:$A$121,$A31,Staff!$B$2:$B$121,$B31),NA()) -> 21 | E31: =IF(E$39,SUMIFS(Staff!E$2:E$121,Staff!$A$2:$A$121,$A31,Staff!$B$2:$B$121,$B31),NA()) -> 18
A32: =Summary!$B$7 -> England | B32: 2013-09-01 | C32: =IF(C$39,SUMIFS(Staff!C$2:C$121,Staff!$A$2:$A$121,$A32,Staff!$B$2:$B$121,$B32),NA()) -> 67 | D32: =IF(D$39,SUMIFS(Staff!D$2:D$121,Staff!$A$2:$A$121,$A32,Staff!$B$2:$B$121,$B32),NA()) -> 26 | E32: =IF(E$39,SUMIFS(Staff!E$2:E$121,Staff!$A$2:$A$121,$A32,Staff!$B$2:$B$121,$B32),NA()) -> 21
A33: =Summary!$B$7 -> England | B33: 2013-10-01 | C33: =IF(C$39,SUMIFS(Staff!C$2:C$121,Staff!$A$2:$A$121,$A33,Staff!$B$2:$B$121,$B33),NA()) -> 84 | D33: =IF(D$39,SUMIFS(Staff!D$2:D$121,Staff!$A$2:$A$121,$A33,Staff!$B$2:$B$121,$B33),NA()) -> 34 | E33: =IF(E$39,SUMIFS(Staff!E$2:E$121,Staff!$A$2:$A$121,$A33,Staff!$B$2:$B$121,$B33),NA()) -> 26
A34: =Summary!$B$7 -> England | B34: 2013-11-01 | C34: =IF(C$39,SUMIFS(Staff!C$2:C$121,Staff!$A$2:$A$121,$A34,Staff!$B$2:$B$121,$B34),NA()) -> 75 | D34: =IF(D$39,SUMIFS(Staff!D$2:D$121,Staff!$A$2:$A$121,$A34,Staff!$B$2:$B$121,$B34),NA()) -> 29 | E34: =IF(E$39,SUMIFS(Staff!E$2:E$121,Staff!$A$2:$A$121,$A34,Staff!$B$2:$B$121,$B34),NA()) -> 23
A35: =Summary!$B$7 -> England | B35: 2013-12-01 | C35: =IF(C$39,SUMIFS(Staff!C$2:C$121,Staff!$A$2:$A$121,$A35,Staff!$B$2:$B$121,$B35),NA()) -> 87 | D35: =IF(D$39,SUMIFS(Staff!D$2:D$121,Staff!$A$2:$A$121,$A35,Staff!$B$2:$B$121,$B35),NA()) -> 35 | E35: =IF(E$39,SUMIFS(Staff!E$2:E$121,Staff!$A$2:$A$121,$A35,Staff!$B$2:$B$121,$B35),NA()) -> 27
B37: Toal | C37: =SUM(C24:C36) -> 933 | D37: 364 | E37: =SUM(E24:E36) -> 286
B39: Selection | C39: TRUE | D39: TRUE | E39: TRUE
A42: Region | B42: Dept | C42: Avg Salary | D42: Avg Bonus | E42: Avg Overtime
A43: =Summary!$B$7 -> England | B43: IT | C43: =SUMIFS(HR!F$2:F$17,HR!$A$2:$A$17,$A43,HR!$B$2:$B$17,$B43) -> 65455 | D43: =SUMIFS(HR!G$2:G$17,HR!$A$2:$A$17,$A43,HR!$B$2:$B$17,$B43) -> 6872.775 | E43: =SUMIFS(HR!H$2:H$17,HR!$A$2:$A$17,$A43,HR!$B$2:$B$17,$B43) -> 3272.75
A44: =Summary!$B$7 -> England | B44: Finance | C44: =SUMIFS(HR!F$2:F$17,HR!$A$2:$A$17,$A44,HR!$B$2:$B$17,$B44) -> 48978 | D44: =SUMIFS(HR!G$2:G$17,HR!$A$2:$A$17,$A44,HR!$B$2:$B$17,$B44) -> 5142.69 | E44: =SUMIFS(HR!H$2:H$17,HR!$A$2:$A$17,$A44,HR!$B$2:$B$17,$B44) -> 979.56
A45: =Summary!$B$7 -> England | B45: HR | C45: =SUMIFS(HR!F$2:F$17,HR!$A$2:$A$17,$A45,HR!$B$2:$B$17,$B45) -> 46550 | D45: =SUMIFS(HR!G$2:G$17,HR!$A$2:$A$17,$A45,HR!$B$2:$B$17,$B45) -> 4887.75 | E45: =SUMIFS(HR!H$2:H$17,HR!$A$2:$A$17,$A45,HR!$B$2:$B$17,$B45) -> 931
A46: =Summary!$B$7 -> England | B46: Strategy | C46: =SUMIFS(HR!F$2:F$17,HR!$A$2:$A$17,$A46,HR!$B$2:$B$17,$B46) -> 49864 | D46: =SUMIFS(HR!G$2:G$17,HR!$A$2:$A$17,$A46,HR!$B$2:$B$17,$B46) -> 5235.72 | E46: =SUMIFS(HR!H$2:H$17,HR!$A$2:$A$17,$A46,HR!$B$2:$B$17,$B46) -> 2493.2
B47: Avg | C47: =AVERAGE(C43:C46) -> 52711.75 | D47: =AVERAGE(D43:D46) -> 5534.73375 | E47: =AVERAGE(E43:E46) -> 1919.1275
A50: Region | B50: Dept | C50: AvgLeave Balance | D50: Perf Score
A51: =Summary!$B$7 -> England | B51: IT | C51: =SUMIFS(HR!I$2:I$17,HR!$A$2:$A$17,$A51,HR!$B$2:$B$17,$B51) -> 22 | D51: =SUMIFS(HR!AN2:AN17,HR!$A$2:$A$17,$A51,HR!$B$2:$B$17,$B51) -> 4.5
A52: =Summary!$B$7 -> England | B52: Finance | C52: =SUMIFS(HR!I$2:I$17,HR!$A$2:$A$17,$A52,HR!$B$2:$B$17,$B52) -> 32 | D52: =SUMIFS(HR!AN3:AN18,HR!$A$2:$A$17,$A52,HR!$B$2:$B$17,$B52) -> 4.2
A53: =Summary!$B$7 -> England | B53: HR | C53: =SUMIFS(HR!I$2:I$17,HR!$A$2:$A$17,$A53,HR!$B$2:$B$17,$B53) -> 15 | D53: =SUMIFS(HR!AN4:AN19,HR!$A$2:$A$17,$A53,HR!$B$2:$B$17,$B53) -> 4
A54: =Summary!$B$7 -> England | B54: Strategy | C54: =SUMIFS(HR!I$2:I$17,HR!$A$2:$A$17,$A54,HR!$B$2:$B$17,$B54) -> 6 | D54: =SUMIFS(HR!AN5:AN20,HR!$A$2:$A$17,$A54,HR!$B$2:$B$17,$B54) -> 3.8
B55: Avg | C55: =AVERAGE(C51:C54) -> 18.75 | D55: =AVERAGE(D51:D54) -> 4.125
A58: Region | B58: Month | C58: Termination | D58: New Hires | E58: New Hires
A59: =Summary!$B$7 -> England | B59: 2013-01-01 | C59: =SUMIFS(Staff!F$2:F$121,Staff!$A$2:$A$121,$A59,Staff!$B$2:$B$121,$B59) -> -2 | D59: =SUMIFS(Staff!G$2:G$121,Staff!$A$2:$A$121,$A59,Staff!$B$2:$B$121,$B59) -> 7
A60: =Summary!$B$7 -> England | B60: 2013-02-01 | C60: =SUMIFS(Staff!F$2:F$121,Staff!$A$2:$A$121,$A60,Staff!$B$2:$B$121,$B60) -> -3 | D60: =SUMIFS(Staff!G$2:G$121,Staff!$A$2:$A$121,$A60,Staff!$B$2:$B$121,$B60) -> 4
A61: =Summary!$B$7 -> England | B61: 2013-03-01 | C61: =SUMIFS(Staff!F$2:F$121,Staff!$A$2:$A$121,$A61,Staff!$B$2:$B$121,$B61) -> 0 | D61: =SUMIFS(Staff!G$2:G$121,Staff!$A$2:$A$121,$A61,Staff!$B$2:$B$121,$B61) -> 2
A62: =Summary!$B$7 -> England | B62: 2013-04-01 | C62: =SUMIFS(Staff!F$2:F$121,Staff!$A$2:$A$121,$A62,Staff!$B$2:$B$121,$B62) -> -3 | D62: =SUMIFS(Staff!G$2:G$121,Staff!$A$2:$A$121,$A62,Staff!$B$2:$B$121,$B62) -> 3
A63: =Summary!$B$7 -> England | B63: 2013-05-01 | C63: =SUMIFS(Staff!F$2:F$121,Staff!$A$2:$A$121,$A63,Staff!$B$2:$B$121,$B63) -> -3 | D63: =SUMIFS(Staff!G$2:G$121,Staff!$A$2:$A$121,$A63,Staff!$B$2:$B$121,$B63) -> 3
A64: =Summary!$B$7 -> England | B64: 2013-06-01 | C64: =SUMIFS(Staff!F$2:F$121,Staff!$A$2:$A$121,$A64,Staff!$B$2:$B$121,$B64) -> -3 | D64: =SUMIFS(Staff!G$2:G$121,Staff!$A$2:$A$121,$A64,Staff!$B$2:$B$121,$B64) -> 2
A65: =Summary!$B$7 -> England | B65: 2013-07-01 | C65: =SUMIFS(Staff!F$2:F$121,Staff!$A$2:$A$121,$A65,Staff!$B$2:$B$121,$B65) -> -3 | D65: =SUMIFS(Staff!G$2:G$121,Staff!$A$2:$A$121,$A65,Staff!$B$2:$B$121,$B65) -> 2
A66: =Summary!$B$7 -> England | B66: 2013-08-01 | C66: =SUMIFS(Staff!F$2:F$121,Staff!$A$2:$A$121,$A66,Staff!$B$2:$B$121,$B66) -> -2 | D66: =SUMIFS(Staff!G$2:G$121,Staff!$A$2:$A$121,$A66,Staff!$B$2:$B$121,$B66) -> 4
A67: =Summary!$B$7 -> England | B67: 2013-09-01 | C67: =SUMIFS(Staff!F$2:F$121,Staff!$A$2:$A$121,$A67,Staff!$B$2:$B$121,$B67) -> -3 | D67: =SUMIFS(Staff!G$2:G$121,Staff!$A$2:$A$121,$A67,Staff!$B$2:$B$121,$B67) -> 1
A68: =Summary!$B$7 -> England | B68: 2013-10-01 | C68: =SUMIFS(Staff!F$2:F$121,Staff!$A$2:$A$121,$A68,Staff!$B$2:$B$121,$B68) -> -3 | D68: =SUMIFS(Staff!G$2:G$121,Staff!$A$2:$A$121,$A68,Staff!$B$2:$B$121,$B68) -> 4
A69: =Summary!$B$7 -> England | B69: 2013-11-01 | C69: =SUMIFS(Staff!F$2:F$121,Staff!$A$2:$A$121,$A69,Staff!$B$2:$B$121,$B69) -> -3 | D69: =SUMIFS(Staff!G$2:G$121,Staff!$A$2:$A$121,$A69,Staff!$B$2:$B$121,$B69) -> 1
A70: =Summary!$B$7 -> England | B70: 2013-12-01 | C70: =SUMIFS(Staff!F$2:F$121,Staff!$A$2:$A$121,$A70,Staff!$B$2:$B$121,$B70) -> -3 | D70: =SUMIFS(Staff!G$2:G$121,Staff!$A$2:$A$121,$A70,Staff!$B$2:$B$121,$B70) -> 2
B71: Total | C71: =SUM(C59:C70) -> -31 | D71: 35
A74: Region | B74: Dept | C74: 19-25 | D74: 26-35 | E74: 36-45 | F74: 46-55 | G74: 55+
A75: =Summary!$B$7 -> England | B75: IT | C75: =SUMIFS(HR!AO$2:AO$17,HR!$A$2:$A$17,$A75,HR!$B$2:$B$17,$B75) -> 21.6 | D75: =SUMIFS(HR!AP$2:AP$17,HR!$A$2:$A$17,$A75,HR!$B$2:$B$17,$B75) -> 32.4 | E75: =SUMIFS(HR!AQ$2:AQ$17,HR!$A$2:$A$17,$A75,HR!$B$2:$B$17,$B75) -> 32.4 | F75: =SUMIFS(HR!AR$2:AR$17,HR!$A$2:$A$17,$A75,HR!$B$2:$B$17,$B75) -> 10.8 | G75: =SUMIFS(HR!AS$2:AS$17,HR!$A$2:$A$17,$A75,HR!$B$2:$B$17,$B75) -> 10.8
A76: =Summary!$B$7 -> England | B76: Finance | C76: =SUMIFS(HR!AO$2:AO$17,HR!$A$2:$A$17,$A76,HR!$B$2:$B$17,$B76) -> 13.75 | D76: =SUMIFS(HR!AP$2:AP$17,HR!$A$2:$A$17,$A76,HR!$B$2:$B$17,$B76) -> 6.6 | E76: =SUMIFS(HR!AQ$2:AQ$17,HR!$A$2:$A$17,$A76,HR!$B$2:$B$17,$B76) -> 11 | F76: =SUMIFS(HR!AR$2:AR$17,HR!$A$2:$A$17,$A76,HR!$B$2:$B$17,$B76) -> 12.1 | G76: =SUMIFS(HR!AS$2:AS$17,HR!$A$2:$A$17,$A76,HR!$B$2:$B$17,$B76) -> 11.55
A77: =Summary!$B$7 -> England | B77: HR | C77: =SUMIFS(HR!AO$2:AO$17,HR!$A$2:$A$17,$A77,HR!$B$2:$B$17,$B77) -> 2.64 | D77: =SUMIFS(HR!AP$2:AP$17,HR!$A$2:$A$17,$A77,HR!$B$2:$B$17,$B77) -> 6.6 | E77: =SUMIFS(HR!AQ$2:AQ$17,HR!$A$2:$A$17,$A77,HR!$B$2:$B$17,$B77) -> 6.27 | F77: =SUMIFS(HR!AR$2:AR$17,HR!$A$2:$A$17,$A77,HR!$B$2:$B$17,$B77) -> 4.62 | G77: =SUMIFS(HR!AS$2:AS$17,HR!$A$2:$A$17,$A77,HR!$B$2:$B$17,$B77) -> 12.87
A78: =Summary!$B$7 -> England | B78: Strategy | C78: =SUMIFS(HR!AO$2:AO$17,HR!$A$2:$A$17,$A78,HR!$B$2:$B$17,$B78) -> 14.19 | D78: =SUMIFS(HR!AP$2:AP$17,HR!$A$2:$A$17,$A78,HR!$B$2:$B$17,$B78) -> 12.47 | E78: =SUMIFS(HR!AQ$2:AQ$17,HR!$A$2:$A$17,$A78,HR!$B$2:$B$17,$B78) -> 3.01 | F78: =SUMIFS(HR!AR$2:AR$17,HR!$A$2:$A$17,$A78,HR!$B$2:$B$17,$B78) -> 3.87 | G78: =SUMIFS(HR!AS$2:AS$17,HR!$A$2:$A$17,$A78,HR!$B$2:$B$17,$B78) -> 9.46
A80: Region | B80: Speed to Hire | C80: Promo Rate | D80: Cust Satisfaction
A81: England | B81: 27 | C81: 0.09 | D81: 0.88
A82: Scotland | B82: 28 | C82: 0.07 | D82: 0.84
A83: Wales | B83: 29 | C83: 0.08 | D83: 0.82
A84: Northern Ireland | B84: 30 | C84: 0.1 | D84: 0.91
A86: =Summary!$B$7 -> England | B86: =SUMIFS(B81:B84,$A$81:$A$84,$A$86) -> 27 | C86: =SUMIFS(C81:C84,$A$81:$A$84,$A$86) -> 0.09 | D86: 0.88

Sheet Chart
A1: Speed to Hire | B1: 2016
A2: Good | B2: 15
A3: OK | B3: 30
A4: Actual | B4: =Calcs!B86 -> 27
A5: Target | B5: 32
A8: Target Val | B8: =B5 -> 32
A9: Target Cat | B9: 2
A11: Desc | B11: Actual | C11: Poor | D11: OK
A12: Grad | B12: 0 | C12: =B2 -> 15 | D12: =MAX(B3-C12,0) -> 15
A13: Actual | B13: =B4 -> 27 | C13: =MAX($B$2-MAX(0,$B$4),0) -> 0 | D13: =MAX(MIN($B3-$B2,$B3-$B4),0) -> 3
A14: Gradation2 | B14: =B12 -> 0 | C14: =C12 -> 15 | D14: =D12 -> 15
A17: Promo Rate | B17: 2016
A18: Good | B18: 0.05
A19: OK | B19: 0.07
A20: Actual | B20: =Calcs!C86 -> 0.09
A21: Target | B21: 0.08
A24: Target Val | B24: =B21 -> 0.08
A25: Target Cat | B25: 2
A27: Desc | B27: Actual | C27: Poor | D27: OK
A28: Grad | B28: 0 | C28: =B18 -> 0.05 | D28: =MAX(B19-C28,0) -> 0.02
A29: Actual | B29: =B20 -> 0.09 | C29: =MAX($B$2-MAX(0,$B$4),0) -> 0 | D29: =MAX(MIN($B19-$B18,$B19-$B20),0) -> 0
A30: Gradation2 | B30: =B28 -> 0 | C30: =C28 -> 0.05 | D30: =D28 -> 0.02
A33: Cust Satisfaction | B33: 2016
A34: Poor | B34: 0.5
A35: OK | B35: 0.75
A36: Actual | B36: =Calcs!D86 -> 0.88
A37: Target | B37: 0.85
A40: Target Val | B40: =B37 -> 0.85
A41: Target Cat | B41: 2
A43: Desc | B43: Actual | C43: Poor | D43: OK
A44: Grad | B44: 0 | C44: =B34 -> 0.5 | D44: =MAX(B35-C44,0) -> 0.25
A45: Actual | B45: =B36 -> 0.88 | C45: =MAX($B$2-MAX(0,$B$4),0) -> 0 | D45: =MAX(MIN($B35-$B34,$B35-$B36),0) -> 0
A46: Gradation2 | B46: =B44 -> 0 | C46: =C44 -> 0.5 | D46: =D44 -> 0.25

Sheet Summary
Q5: Region
C6: Department >> | D6: Strategy
B7: England | F7: =B7&" "&D6&" Metrics" -> England Strategy Metrics
B8: Department | C8: FTE | D8: Qtly Trend | F8: Q1 | G8: Q2 | H8: Q3 | I8: Q4 | J8: Total | K8: Trend
B9: IT | C9: =SUMIFS(HR!AI$2:AI$17,HR!$A$2:$A$17,$B$7,HR!$B$2:$B$17,$B$9) -> 108 | F9: Employee Satisfaction %
F10: =Calcs!D3 -> 18 | G10: =Calcs!E3 -> 28 | H10: =Calcs!F3 -> 38 | I10: =Calcs!G3 -> 48 | J10: =SUM(F10:I10)/4 -> 33
B11: Finance | C11: =SUMIFS(HR!AI$2:AI$17,HR!$A$2:$A$17,$B$7,HR!$B$2:$B$17,$B11) -> 55
F12: Employees Trained
B13: HR | C13: =SUMIFS(HR!AI$2:AI$17,HR!$A$2:$A$17,$B$7,HR!$B$2:$B$17,$B13) -> 33 | F13: =Calcs!D4 -> 20 | G13: =Calcs!E4 -> 31 | H13: =Calcs!F4 -> 42 | I13: =Calcs!G4 -> 53 | J13: =SUM(F13:I13)/4 -> 36.5
B15: Strategy | C15: =SUMIFS(HR!AI$2:AI$17,HR!$A$2:$A$17,$B$7,HR!$B$2:$B$17,$B15) -> 43 | F15: Gender Diversity % M/F
F16: =Calcs!D5 -> 55 | G16: =Calcs!E5 -> 60 | H16: =Calcs!F5 -> 65 | I16: =Calcs!G5 -> 60 | J16: =Calcs!H9 -> 558
B17: =B7&" Average Spend Per Hire" -> England Average Spend Per Hire
F18: Avg Staff Rating (0-5)
F19: =Calcs!D6 -> 4.8 | G19: =Calcs!E6 -> 4.5 | H19: =Calcs!F6 -> 4.3 | I19: =Calcs!G6 -> 4.5 | J19: =SUM(F19:I19)/4 -> 4.525
F21: FTE/Contractor %
F22: =Calcs!D7 -> 80 | G22: =Calcs!E7 -> 77 | H22: =Calcs!F7 -> 72 | I22: =Calcs!G7 -> 78 | J22: =SUM(F22:I22)/4 -> 76.75
F24: Overtime Hrs
F25: =Calcs!D8 -> 187 | G25: =Calcs!E8 -> 220.2142857 | H25: =Calcs!F8 -> 262.2631579 | I25: =Calcs!G8 -> 307.625 | J25: =AVERAGE(F25:I25) -> 244.2756109
